bitfinex/quotes_ETHUSD_20251021
["timestamp","ask_amount","ask_price","bid_price","bid_amount"]
[1761068471619,2.6800779,4023.7,4022.7,2.48589092]
[1761068471794,2.48548106,4023.4,4022.3,4.04128858]
[1761068471998,2.485865,4022.8,4021.3,0.4281]
[1761068472196,0.50688,4023.1,4021.7,2.48650343]
[1761068472401,2.48596535,4022.6,4021.4,2.48669617]
[1761068472724,0.099,4023.3,4021.3,0.236]
[1761068473019,2.68008956,4023.7,4021.3,0.236]
[1761068473020,3.402,4022.8,4021.3,0.236]
[1761068473222,23.02430207,4023.7,4021.4,0.45296696]
[1761068473223,0.099,4023.6,4021.4,0.45296696]
[1761068473394,0.099,4023.6,4022.4,2.48604866]
[1761068473588,0.099,4023.6,4022.7,2.48583988]
[1761068473790,0.099,4023.6,4021.8,6.31651265]
[1761068473791,2.48553613,4023.3,4021.8,3.8301]
[1761068474117,0.4428,4023.7,4021.8,3.8301]
[1761068474118,0.4428,4023.7,4022.8,2.48577196]
[1761068474318,0.4428,4023.7,4022.5,0.236]
[1761068474628,0.1948,4023.7,4022.9,2.48572023]
[1761068474836,0.1948,4023.7,4022.5,0.236]
[1761068474837,0.1948,4023.7,4023.0,2.48570071]
[1761068475036,2.48533651,4023.6,4022.6,2.48595435]
[1761068475234,2.48533651,4023.6,4022.0,0.4281]
[1761068475235,2.48533651,4023.6,4022.4,2.48607226]
[1761068475528,0.1948,4023.7,4022.9,2.48573043]
[1761068475724,0.60588,4023.6,4021.3,0.236]
[1761068476038,0.099,4023.6,4022.4,2.4860594]
[1761068476238,0.1948,4023.7,4021.5,1.5552]
[1761068476239,1.5552,4023.4,4021.5,1.5552]
[1761068476433,2.48552886,4023.3,4022.4,2.48607768]
[1761068476736,2.48582238,4022.9,4021.7,2.48651067]
[1761068476909,2.48582238,4022.9,4022.0,2.4862723]
[1761068477106,0.099,4022.8,4021.3,0.236]
[1761068477309,2.48612833,4022.4,4021.5,2.48659686]
[1761068477543,2.48594299,4022.7,4021.3,0.236]
[1761068477841,0.099,4022.8,4021.3,0.236]
[1761068477842,3.402,4022.9,4021.3,2.72275708]
[1761068478042,3.402,4022.9,4022.0,0.124]
[1761068478043,2.48602612,4022.5,4022.0,0.124]
[1761068478356,0.124,4022.2,4021.5,0.124]
[1761068478636,2.61021804,4022.2,4021.5,0.124]
[1761068478839,0.1772,4022.1,4021.5,0.124]
[1761068478995,1.03847808,4024.0,4021.6,0.2234]
[1761068479195,0.099,4023.6,4022.4,2.48601822]
[1761068479427,0.099,4023.6,4022.7,2.48583477]
[1761068479707,0.099,4023.6,4021.9,2.48638703]
[1761068479911,2.4854904,4023.4,4021.9,2.48638703]
[1761068480122,0.099,4023.6,4021.9,2.48638703]
[1761068480123,0.099,4023.6,4021.9,1.5552]
[1761068480430,0.099,4023.6,4022.4,2.48604202]
[1761068480729,0.099,4023.6,4022.2,2.48615559]
[1761068480730,2.4856619,4023.1,4022.2,2.48615559]
[1761068480939,0.50688,4023.5,4021.6,0.2234]
[1761068481186,2.48625874,4022.2,4020.2,1.33869895]
[1761068481480,4.847094,4022.4,4020.8,2.48704805]
[1761068481681,2.361,4022.4,4021.4,2.48665804]
[1761068481837,2.48613977,4022.3,4021.5,2.48662919]
[1761068482033,0.50688,4022.2,4020.8,0.4496]
[1761068482358,5.21413222,4022.4,4021.5,2.48659302]
[1761068482557,0.1788,4022.3,4021.6,2.48652053]
[1761068482746,2.66496769,4022.3,4021.9,0.002]
[1761068482945,2.48621663,4022.2,4021.9,0.002]
[1761068483145,2.5852197,4022.2,4021.9,0.002]
[1761068483350,0.1788,4022.3,4021.9,0.002]
[1761068483560,0.099,4022.2,4021.9,0.002]
[1761068483773,2.48631878,4022.1,4021.9,0.002]
[1761068484069,2.58521051,4022.2,4021.9,0.002]
[1761068484257,0.1788,4022.3,4021.9,0.002]
[1761068484439,3.5808,4022.3,4021.9,0.002]
[1761068485377,0.099,4022.2,4021.9,0.002]
[1761068485874,2.58521208,4022.2,4021.9,0.002]
[1761068486091,0.50688,4022.2,4021.9,0.002]
[1761068486280,4.54840521,4022.0,4021.9,0.002]
[1761068486483,7.95040521,4022.0,4021.9,0.002]
[1761068486681,4.64740521,4022.0,4021.9,0.002]
[1761068486853,8.04940521,4022.0,4021.9,0.002]
[1761068487692,4.64740521,4022.0,4021.9,0.002]
[1761068487895,8.04940521,4022.0,4021.9,0.002]
[1761068488211,1.6542,4022.0,4021.9,0.002]
[1761068488359,3.402,4022.0,4021.9,0.002]
[1761068488757,6.49420521,4022.0,4021.9,0.002]
[1761068489363,8.04940521,4022.0,4021.9,0.002]
[1761068489694,4.9572,4022.0,4021.9,0.002]
[1761068490057,7.44352521,4022.0,4021.9,0.002]
[1761068490260,7.54252521,4022.0,4021.9,0.002]
[1761068490463,8.04940521,4022.0,4021.9,0.002]
[1761068493095,5.0562,4022.0,4021.9,0.002]
[1761068493416,7.54252521,4022.0,4021.9,0.002]
[1761068493597,8.04940521,4022.0,4021.9,0.002]
[1761068494774,2.99351434,4021.5,4021.4,1e-08]
[1761068495100,7.94971434,4021.5,4021.4,1e-08]
[1761068495407,8.04871434,4021.5,4021.4,1e-08]
[1761068495581,10.34082734,4021.5,4021.4,1e-08]
[1761068495779,33.17032941,4021.5,4021.4,1e-08]
[1761068496124,33.69348176,4021.5,4021.4,1e-08]
[1761068496908,31.40136876,4021.5,4021.4,1e-08]
[1761068497109,27.47721641,4021.5,4021.4,1e-08]
[1761068497405,8.04971434,4021.5,4021.4,1e-08]
[1761068497610,8.57375394,4021.5,4021.4,1e-08]
[1761068500008,34.83346501,4021.5,4021.4,1e-08]
[1761068500514,34.29977501,4021.5,4021.4,1e-08]
[1761068500708,5.17175394,4021.5,4021.4,1e-08]
[1761068500908,4.14083434,4021.5,4021.4,1e-08]
[1761068501213,7.54283434,4021.5,4021.4,1e-08]
[1761068501424,8.04971434,4021.5,4021.4,1e-08]
[1761068502405,0.00614017,4022.7,4022.4,0.2158]
[1761068502607,0.001,4023.9,4023.3,2.48552183]
[1761068502845,0.001,4023.9,4023.3,0.02485521]
[1761068503044,0.001,4023.9,4022.4,0.6754]
[1761068503241,0.001,4023.9,4022.6,2.48595435]
[1761068503449,0.001,4023.9,4022.7,2.48589255]
[1761068503736,0.001,4023.9,4023.2,2.48556811]
[1761068503949,0.001,4023.9,4023.3,2.48550601]
[1761068504101,0.001,4023.9,4022.6,0.4596]
[1761068504407,0.001,4023.9,4023.6,2.48533102]
[1761068504804,0.001,4023.9,4023.8,2.70101298]
[1761068505043,0.001,4023.9,4023.8,0.2158]
[1761068505246,0.001,4023.9,4023.8,2.70101298]
[1761068505541,0.001,4023.9,4023.8,3.16061298]
[1761068506106,0.001,4023.9,4023.8,2.70101298]
[1761068506622,0.001,4023.9,4023.3,0.4596]
[1761068506623,0.001,4023.9,4023.7,0.2158]
[1761068506836,0.001,4023.9,4023.7,2.48525434]
[1761068507452,0.001,4023.9,4022.8,0.4596]
[1761068507651,0.001,4023.9,4023.5,2.4853764]
[1761068507873,0.001,4023.9,4023.7,2.48522569]
[1761068508153,0.001,4023.9,4023.8,2.48521298]
[1761068508352,0.001,4023.9,4023.1,2.48563505]
[1761068508519,0.001,4023.9,4023.6,2.48528189]
[1761068509053,0.001,4023.9,4023.0,0.4596]
[1761068509216,0.001,4023.9,4022.6,1.5552]
[1761068509415,0.001,4023.9,4023.7,2.48522832]
[1761068509619,0.001,4023.9,4023.5,2.48535116]
[1761068509850,0.001,4023.9,4023.2,0.4596]
[1761068510051,0.001,4023.9,4023.8,2.48521298]
[1761068512854,0.001,4023.9,4023.8,3.06881298]
[1761068513059,0.001,4023.9,4023.8,2.48521298]
[1761068514235,0.001,4023.9,4023.7,2.48523082]
[1761068514558,0.001,4023.9,4023.8,2.48521298]
[1761068514731,0.001,4023.9,4023.7,0.4392]
[1761068514948,0.001,4023.9,4023.7,2.92445786]
[1761068515151,0.001,4023.9,4023.8,2.48521298]
[1761068515538,0.001,4023.9,4023.7,2.48521974]
[1761068515766,0.001,4023.9,4023.7,2.48527474]
[1761068516753,0.001,4023.9,4023.8,2.48521298]
[1761068517393,0.001,4023.9,4023.7,2.4852595]
[1761068517549,0.001,4023.9,4023.6,0.124]
[1761068517754,0.001,4023.9,4023.7,2.48526326]
[1761068518553,0.001,4023.9,4023.6,0.124]
[1761068518863,0.001,4023.9,4023.4,0.2299]
[1761068519061,0.001,4023.9,4023.2,2.60957746]
[1761068519062,0.125,4023.9,4023.2,2.60957746]
[1761068519271,0.125,4023.9,4023.2,0.124]
[1761068519598,0.50688,4023.4,4021.6,0.4392]
[1761068519797,2.48590907,4022.7,4021.9,2.48634649]
[1761068520087,5.88390907,4022.7,4022.0,2.48630946]
[1761068520456,3.398,4022.7,4021.7,0.4392]
[1761068520789,2.48596874,4022.6,4022.1,0.2299]
[1761068522044,5.88390545,4022.7,4022.2,0.002]
[1761068522275,3.398,4022.7,4022.2,0.002]
[1761068522477,3.398,4022.7,4022.2,2.92739466]
[1761068522849,2.48521935,4023.8,4023.1,2.48561921]
[1761068523205,2.48476557,4024.6,4023.8,2.48521298]
[1761068523484,4.20329023,4024.3,4023.1,0.2299]
[1761068523782,4.20329023,4024.3,4023.2,0.4392]
[1761068524084,6.68819922,4024.3,4023.7,2.48526755]
[1761068524377,4.20329023,4024.3,4023.5,2.48538401]
[1761068524580,0.80529023,4024.3,4023.8,2.48521298]
[1761068524786,0.80529023,4024.3,4023.8,5.9080651]
[1761068524943,0.80529023,4024.3,4023.8,6.32241298]
[1761068525884,0.80529023,4024.3,4023.8,5.88321298]
[1761068526068,0.80529023,4024.3,4023.8,3.8372]
[1761068526268,0.80529023,4024.3,4023.8,6.32241298]
[1761068527570,0.80529023,4024.3,4023.8,3.8372]
[1761068527974,0.80529023,4024.3,4023.8,5.88321298]
[1761068528281,0.80529023,4024.3,4023.8,6.32241298]
[1761068529587,0.80529023,4024.3,4023.8,6.44641298]
[1761068530305,0.80529023,4024.3,4023.8,8.00161298]
[1761068530476,0.80529023,4024.3,4023.8,7.87761298]
[1761068531706,0.80529023,4024.3,4023.8,8.54401143]
[1761068532119,0.80529023,4024.3,4023.8,7.87761298]
[1761068533286,0.80529023,4024.3,4023.8,8.76979657]
[1761068534005,0.80529023,4024.3,4023.8,7.87761298]
[1761068534309,0.80529023,4024.3,4023.8,8.76979657]
[1761068534507,0.80529023,4024.3,4023.8,7.87761298]
[1761068534673,0.80529023,4024.3,4023.8,8.76959432]
[1761068535480,0.80529023,4024.3,4023.8,7.87761298]
[1761068536618,0.80529023,4024.3,4023.8,9.21631193]
[1761068537186,0.80529023,4024.3,4023.8,18.83959693]
[1761068537389,0.80529023,4024.3,4024.2,2.48496595]
[1761068537588,0.80529023,4024.3,4024.2,9.21136283]
[1761068537787,1e-08,4024.3,4024.2,7.87436595]
[1761068537998,1e-08,4024.3,4024.2,6.31916595]
[1761068538314,1e-08,4024.3,4024.2,5.81571823]
[1761068538611,1e-08,4024.3,4024.1,3.15325053]
[1761068538910,1e-08,4024.3,4024.2,5.87996595]
[1761068539409,1e-08,4024.3,4024.2,3.395]
[1761068539782,1e-08,4024.3,4024.2,5.87996595]
[1761068540514,1e-08,4024.3,4024.2,6.00396595]
[1761068541010,1e-08,4024.3,4024.0,5.87908559]
[1761068541312,1e-08,4024.3,4024.2,2.48496595]
[1761068541679,1e-08,4024.3,4024.2,0.124]
[1761068541883,1e-08,4024.3,4024.0,0.66828083]
[1761068541884,0.00100001,4024.3,4024.0,0.124]
[1761068542081,0.00100001,4024.3,4024.1,0.02485027]
[1761068542384,0.00100001,4024.3,4024.2,2.60896595]
[1761068542577,0.00100001,4024.3,4024.2,0.124]
[1761068542997,0.00100001,4024.3,4024.1,2.48501439]
[1761068543313,0.00100001,4024.3,4024.0,0.124]
[1761068543537,0.00100001,4024.3,4023.3,1.79655228]
[1761068543538,2.48510957,4024.0,4023.3,0.66828083]
[1761068543675,2.48594624,4024.3,4022.9,0.66828083]
[1761068543676,2.48552364,4023.3,4022.9,0.66828083]
[1761068543882,2.48555039,4023.3,4022.6,0.002]
[1761068544085,0.1806,4022.7,4022.6,0.002]
[1761068544306,0.1013,4023.2,4022.6,0.002]
[1761068544307,2.48565613,4023.1,4022.6,0.002]
[1761068544514,0.1798,4022.8,4022.6,0.002]
[1761068544918,2.4856362,4023.2,4022.6,0.002]
[1761068545223,0.1893,4023.4,4022.6,0.002]
[1761068545386,0.1893,4023.4,4022.9,2.48571423]
[1761068545713,0.1893,4023.4,4022.6,5.88193228]
[1761068545883,0.1893,4023.4,4022.6,0.002]
[1761068546079,0.1893,4023.4,4022.8,2.48579629]
[1761068546285,0.182,4022.7,4022.6,0.002]
[1761068546492,0.099,4023.3,4022.6,0.002]
[1761068546692,2.5845557,4023.3,4022.6,0.002]
[1761068546892,2.58452938,4023.3,4022.6,0.002]
[1761068547108,0.099,4023.3,4022.6,0.002]
[1761068547307,0.1893,4023.4,4022.6,0.002]
[1761068547686,0.1893,4023.4,4022.7,2.48588476]
[1761068547895,0.00100001,4024.3,4022.8,0.4760583]
[1761068548119,0.00100001,4024.3,4022.6,0.002]
[1761068548120,0.1901,4023.7,4022.6,0.02685954]
[1761068548436,2.67537707,4023.7,4022.6,0.002]
[1761068548655,0.00100001,4024.3,4022.6,0.4532]
[1761068548929,0.1901,4023.9,4022.7,0.66828083]
[1761068549089,0.1901,4023.9,4022.6,0.002]
[1761068549090,2.48538278,4023.6,4022.6,0.002]
[1761068549288,2.48527474,4023.7,4022.6,0.002]
[1761068549489,0.099,4023.8,4022.6,0.002]
[1761068549490,0.1812,4022.7,4022.6,0.002]
[1761068549791,0.099,4023.6,4022.6,0.002]
[1761068549989,1.7453,4023.9,4023.0,2.48569541]
[1761068550184,4.23045972,4023.9,4023.0,2.48569541]
[1761068550421,0.88165607,4026.0,4023.9,2.48515122]
[1761068550623,0.00102535,4026.2,4023.8,0.2168]
[1761068550624,0.88268142,4026.2,4025.9,2.48391663]
[1761068550823,0.88268142,4026.2,4025.9,0.66828083]
[1761068550824,0.00102535,4026.2,4025.9,0.66828083]
[1761068551143,0.00102535,4026.2,4025.8,1.5552]
[1761068551490,0.00102535,4026.2,4025.8,4.0391485]
[1761068551688,0.00102535,4026.2,4025.8,4.70742933]
[1761068551928,0.00102535,4026.2,4025.8,4.70745219]
[1761068552131,0.00102535,4026.2,4025.9,2.48390559]
[1761068552312,0.00102535,4026.2,4025.8,1.5552]
[1761068552618,0.00102535,4026.2,4025.2,1.78755228]
[1761068552619,0.00102535,4026.2,4025.4,0.2168]
[1761068552985,2.48379666,4026.1,4025.4,0.2168]
[1761068553189,0.00102535,4026.2,4025.4,0.2168]
[1761068553606,0.124,4026.1,4025.4,0.3408]
[1761068553995,0.124,4026.1,4025.5,2.48416345]
[1761068554190,0.124,4026.1,4025.4,0.3408]
[1761068554431,0.124,4026.1,4025.6,2.4840953]
[1761068554741,0.124,4026.1,4025.4,0.3408]
[1761068555408,0.124,4026.1,4025.7,2.48398786]
[1761068555739,0.124,4026.1,4025.5,1.5552]
[1761068555894,0.00102535,4026.2,4025.7,0.124]
[1761068556095,0.124,4026.0,4025.6,2.48409545]
[1761068556369,0.124,4026.0,4025.5,1.5552]
[1761068556570,0.124,4026.0,4025.7,2.48403798]
[1761068557156,0.124,4026.0,4025.8,2.48396614]
[1761068557464,0.124,4026.0,4025.5,4.03936068]
[1761068557763,0.124,4026.0,4025.7,2.48403694]
[1761068557980,0.124,4026.0,4025.8,2.48392424]
[1761068558178,0.00102535,4026.2,4025.8,2.48393119]
[1761068558475,0.124,4026.1,4025.6,1.5552]
[1761068558783,0.50688,4026.0,4024.4,0.66828083]
[1761068558991,0.50688,4025.8,4024.1,0.88508083]
[1761068559152,2.48451989,4025.0,4024.2,2.48494864]
[1761068559671,2.48445223,4025.1,4023.8,3.6088]
[1761068559841,2.48445223,4025.1,4024.3,2.48485556]
[1761068560401,2.48447371,4025.0,4024.1,2.48702317]
[1761068560568,2.48452843,4025.0,4024.2,2.48496319]
[1761068560771,2.4843486,4025.2,4024.2,2.48496319]
[1761068560970,0.2672,4025.1,4024.2,2.48496319]
[1761068561166,2.48447204,4025.0,4024.2,2.48496319]
[1761068561368,2.75167081,4025.1,4024.1,0.002]
[1761068561563,2.48455594,4024.9,4024.1,2.48699858]
[1761068561799,0.1699,4025.0,4024.1,0.002]
[1761068562100,0.1699,4025.0,4024.1,2.48698746]
[1761068562475,2.48453377,4024.9,4024.2,2.4849648]
[1761068562673,2.48453377,4024.9,4024.1,2.48701463]
[1761068562877,0.1699,4025.0,4024.1,2.48701463]
[1761068563212,0.1699,4025.0,4024.1,0.002]
[1761068563409,2.48465724,4024.7,4024.1,0.002]
[1761068563572,2.48496595,4024.2,4024.1,0.002]
[1761068564077,2.58396595,4024.2,4024.1,0.002]
[1761068564984,0.099,4024.2,4024.1,0.002]
[1761068565305,2.48496595,4024.2,4024.1,0.002]
[1761068565771,2.4848466,4024.4,4024.1,0.002]
[1761068565971,0.001,4026.0,4024.3,0.2168]
[1761068566321,2.48414714,4025.6,4024.3,1.772]
[1761068566476,2.48405414,4025.7,4024.9,2.48448136]
[1761068566803,2.48404004,4025.7,4025.0,2.48446923]
[1761068567004,0.0997,4025.6,4024.3,1.772]
[1761068567184,2.48427668,4025.4,4024.4,2.48484246]
[1761068567501,0.0997,4025.6,4024.3,2.48487478]
[1761068567730,4.917997,4025.8,4024.0,0.02485089]
[1761068567731,2.4844652,4025.1,4024.1,1.5572]
[1761068567938,2.4844652,4025.1,4024.4,2.48483792]
[1761068568102,2.48429807,4025.3,4024.6,2.48468205]
[1761068568298,2.4843486,4025.2,4024.3,2.4849042]
[1761068568604,3.391,4025.3,4024.4,0.60004842]
[1761068568605,0.124,4025.1,4024.4,0.60004842]
[1761068568799,0.124,4025.1,4024.7,2.48463797]
[1761068569024,3.391,4025.5,4024.5,2.48478071]
[1761068569333,0.124,4025.3,4024.6,0.124]
[1761068569837,0.124,4025.3,4024.7,2.48465724]
[1761068570147,0.1699,4024.7,4024.1,2.48701788]
[1761068570313,0.124,4024.6,4024.1,0.002]
[1761068570650,0.1699,4024.7,4024.1,0.002]
[1761068570816,0.124,4024.2,4024.1,0.002]
[1761068571602,0.124,4024.2,4024.1,2.7038277]
[1761068572039,0.124,4024.2,4024.1,0.67]
[1761068572235,0.124,4024.5,4024.1,2.70378433]
[1761068573115,0.124,4024.5,4024.1,0.002]
[1761068573428,2.484854,4024.4,4024.1,0.002]
[1761068573632,3.39,4024.6,4024.1,0.002]
[1761068573801,2.48478377,4024.5,4024.1,0.002]
[1761068574333,5.87472235,4024.6,4024.1,0.002]
[1761068574722,5.87472235,4024.6,4024.1,0.2182]
[1761068575240,2.48447204,4025.0,4024.1,0.2182]
[1761068575407,3.39,4024.6,4024.1,0.2182]
[1761068575738,3.39,4024.6,4024.1,0.002]
[1761068575936,2.48478071,4024.5,4024.1,0.002]
[1761068576140,5.8747312,4024.6,4024.1,0.002]
[1761068576439,3.39,4024.6,4024.1,0.002]
[1761068576604,3.39,4024.6,4024.1,0.2182]
[1761068576809,3.39,4024.6,4024.1,2.70321549]
[1761068578841,3.39,4024.6,4024.1,2.70321621]
[1761068579217,3.39,4024.6,4024.2,2.48496555]
[1761068579418,3.39,4024.6,4024.1,2.70320456]
[1761068579618,3.39,4024.6,4024.1,0.2182]
[1761068579822,3.39,4024.6,4024.1,2.70317227]
[1761068580053,3.391,4024.6,4024.1,0.663]
[1761068580247,3.391,4024.6,4024.1,3.14800733]
[1761068580548,0.001,4024.6,4024.1,0.2182]
[1761068581512,0.001,4024.6,4024.2,2.48492324]
[1761068581846,0.001,4024.6,4024.1,0.663]
[1761068581847,0.001,4024.6,4024.1,3.148004]
[1761068582157,0.001,4024.6,4024.1,0.663]
[1761068582330,0.001,4024.6,4024.1,0.2182]
[1761068582745,2.48496595,4024.2,4024.1,0.002]
[1761068582990,5.87396595,4024.2,4024.1,0.002]
[1761068583283,0.1007,4024.6,4024.1,0.002]
[1761068583284,0.001,4024.6,4024.1,0.002]
[1761068583459,0.124,4024.4,4024.2,0.661]
[1761068583782,0.001,4024.6,4024.3,0.4448]
[1761068583940,0.001,4024.6,4024.5,2.48478071]
[1761068584141,0.00102535,4026.2,4026.1,2.48379324]
[1761068584457,0.00102535,4026.2,4026.1,3.16963117]
[1761068584658,2.535e-05,4026.2,4026.1,3.16963117]
[1761068584856,2.535e-05,4026.2,4026.1,3.81273791]
[1761068585059,2.535e-05,4026.2,4026.1,3.14479324]
[1761068585253,2.535e-05,4026.2,4026.1,0.2162]
[1761068585567,2.535e-05,4026.2,4025.9,2.48391556]
[1761068585765,2.535e-05,4026.2,4026.1,2.48379324]
[1761068585967,2.535e-05,4026.2,4026.0,0.4448]
[1761068586175,2.535e-05,4026.2,4025.8,0.2162]
[1761068586569,2.535e-05,4026.2,4025.8,0.661]
[1761068586955,2.535e-05,4026.2,4026.1,2.48379324]
[1761068587708,2.535e-05,4026.2,4025.5,2.48410907]
[1761068587709,0.09902535,4026.2,4025.3,0.66794467]
[1761068588006,0.09902535,4026.2,4024.4,2.48481481]
[1761068588007,0.50688,4025.7,4024.4,2.48481481]
[1761068588146,3.388,4025.6,4025.0,2.48444544]
[1761068588499,3.388,4025.6,4024.6,0.66794467]
[1761068588847,3.388,4025.6,4024.5,0.66794467]
[1761068589097,3.388,4025.6,4024.9,2.4845056]
[1761068589289,5.87214561,4025.6,4024.6,2.9295154]
[1761068589444,3.388,4025.6,4024.7,2.48465724]
[1761068589651,3.388,4025.6,4024.8,2.4845383]
[1761068589896,3.388,4025.6,4024.8,2.48457675]
[1761068590096,3.388,4025.6,4024.9,2.48452003]
[1761068590316,2.535e-05,4026.2,4024.7,0.4448]
[1761068590317,3.387,4025.7,4025.0,2.484417]
[1761068590603,3.387,4025.7,4025.1,2.70059524]
[1761068590809,3.387,4025.7,4024.7,0.4448]
[1761068590976,2.48415466,4025.6,4024.9,2.48453064]
[1761068591166,3.387,4025.7,4024.8,2.48457995]
[1761068591167,2.48419595,4025.5,4024.8,2.48457995]
[1761068591808,2.65250762,4025.6,4024.8,2.48457995]
[1761068592392,2.65250762,4025.6,4024.9,2.48453356]
[1761068592709,2.48421289,4025.5,4024.7,2.48463456]
[1761068592915,0.1684,4025.6,4024.3,1.11274467]
[1761068593079,0.1684,4025.6,4024.3,0.66794467]
[1761068593277,2.48418146,4025.5,4024.5,2.48477913]
[1761068593483,2.48418146,4025.5,4024.8,2.48459065]
[1761068593685,3.387,4025.7,4024.6,0.46964718]
[1761068593986,0.124,4025.5,4025.3,2.48428433]
[1761068594204,0.124,4025.5,4024.8,0.124]
[1761068594376,0.124,4025.5,4025.0,2.48441998]
[1761068594713,3.387,4025.8,4024.6,0.66794467]
[1761068594895,0.124,4025.2,4024.5,0.124]
[1761068595096,2.60836524,4025.2,4024.5,2.60876805]
[1761068595400,2.48448314,4025.0,4024.3,0.66794467]
[1761068595709,2.48448314,4025.0,4024.3,2.48489801]
[1761068595867,2.4844825,4025.0,4024.3,2.48488874]
[1761068596075,5.87045333,4025.1,4024.3,2.48488874]
[1761068596305,2.48448586,4025.0,4024.2,0.2162]
[1761068596607,2.48448586,4025.0,4024.2,2.70111348]
[1761068596773,5.87042421,4025.1,4024.2,0.2162]
[1761068596970,3.386,4025.1,4024.3,0.02484904]
[1761068597170,3.386,4025.1,4024.4,2.48484246]
[1761068597370,3.386,4025.1,4024.5,2.48476618]
[1761068597791,3.386,4025.1,4024.4,2.48484246]
[1761068598093,3.386,4025.1,4024.8,2.48456641]
[1761068598289,3.386,4025.1,4024.9,0.4448]
[1761068598528,3.386,4025.1,4024.9,2.92929141]
[1761068598897,5.87010832,4025.6,4024.8,2.48453966]
[1761068599121,5.87010832,4025.6,4024.9,2.4845155]
[1761068599595,3.386,4025.6,4024.4,0.66794467]
[1761068599839,2.48426987,4025.4,4024.6,2.48467564]
[1761068600018,0.101,4025.5,4024.4,0.66794467]
[1761068600227,2.48435153,4025.2,4024.3,2.22514467]
[1761068600396,2.48435153,4025.2,4024.5,2.48477877]
[1761068600597,0.101,4025.5,4024.4,2.48482957]
[1761068600833,2.48439539,4025.2,4024.5,2.48476792]
[1761068601189,0.101,4025.5,4024.4,2.48484246]
[1761068601190,2.48416683,4025.5,4024.4,2.48484246]
[1761068601474,2.48422517,4025.4,4024.8,2.48458678]
[1761068601737,3.386,4025.6,4024.4,0.4548]
[1761068602022,5.87011851,4025.6,4024.4,0.4548]
[1761068602205,5.87011851,4025.6,4024.8,2.48455537]
[1761068602609,0.50688,4025.4,4024.3,0.002]
[1761068602831,2.48484246,4024.4,4024.3,0.002]
[1761068603126,5.86984246,4024.4,4024.3,0.002]
[1761068603324,5.97084246,4024.4,4024.3,0.002]
[1761068603528,3.486,4024.4,4024.3,0.002]
[1761068603733,5.97084246,4024.4,4024.3,0.002]
[1761068604292,6.47772246,4024.4,4024.3,0.002]
[1761068605256,3.385,4024.4,4024.3,0.002]
[1761068605532,6.47772246,4024.4,4024.3,0.002]
[1761068608332,5.86984246,4024.4,4024.3,0.002]
[1761068608643,2.48458224,4024.9,4024.3,0.002]
[1761068608842,0.124,4024.5,4024.3,0.002]
[1761068609733,2.58584246,4024.4,4024.3,0.002]
[1761068609935,3.09272246,4024.4,4024.3,0.002]
[1761068610648,0.1671,4025.9,4024.3,0.002]
[1761068610847,3.384,4025.8,4024.3,0.4588]
[1761068611149,1.5552,4025.7,4024.4,2.48484246]
[1761068611346,1.6562,4025.7,4024.5,2.48476633]
[1761068611923,2.48461625,4024.8,4024.3,0.002]
[1761068612347,2.4845955,4024.8,4024.3,0.002]
[1761068612551,3.384,4024.9,4024.3,0.002]
[1761068612791,3.384,4024.9,4024.3,2.48689492]
[1761068612923,2.48429692,4025.3,4024.3,2.48689492]
[1761068612924,3.384,4024.8,4024.5,2.48472374]
[1761068613319,3.384,4024.8,4024.4,2.48484242]
[1761068613522,3.384,4025.2,4024.5,0.4568]
[1761068613766,3.384,4025.2,4024.8,2.48453402]
[1761068614254,3.384,4025.2,4025.1,2.70731032]
[1761068614419,3.384,4025.6,4025.1,0.6797]
[1761068614623,3.384,4025.6,4025.1,3.16406686]
[1761068615239,3.384,4025.6,4025.2,2.48433616]
[1761068615549,3.384,4025.6,4025.2,0.4568]
[1761068615737,3.384,4025.6,4025.3,2.4842849]
[1761068615939,3.384,4025.6,4025.1,0.6797]
[1761068616143,3.384,4025.6,4025.4,2.48421834]
[1761068616347,3.384,4025.6,4025.1,2.70729379]
[1761068616550,3.384,4025.6,4025.1,2.70726747]
[1761068616753,3.384,4025.6,4025.2,2.94111646]
[1761068616938,3.384,4025.6,4025.3,2.48428688]
[1761068617136,3.384,4025.6,4025.3,0.4568]
[1761068617338,3.384,4025.6,4025.3,2.48428495]
[1761068617878,3.384,4025.6,4025.1,0.2229]
[1761068618049,3.384,4025.6,4025.2,2.48433674]
[1761068618440,3.384,4025.6,4025.3,2.4842785]
[1761068618642,3.384,4025.6,4025.1,3.16405893]
[1761068619036,3.384,4025.6,4025.2,2.484337]
[1761068619364,3.384,4025.6,4025.1,3.16408396]
[1761068619568,3.384,4025.6,4025.3,2.48423872]
[1761068619773,3.383,4025.6,4025.3,2.48428688]
[1761068619938,3.383,4025.6,4025.2,2.94114684]
[1761068620131,3.383,4025.6,4024.8,0.89084467]
[1761068620330,3.383,4025.6,4025.4,2.48421263]
[1761068620669,3.507,4025.6,4024.9,3.0653313]
[1761068620857,3.507,4025.6,4025.1,2.48436542]
[1761068621971,3.383,4025.6,4025.2,0.4568]
[1761068622471,3.383,4025.6,4025.2,2.48433391]
[1761068622835,3.383,4025.6,4025.2,2.48434053]
[1761068623075,3.383,4025.6,4025.1,2.48440814]
[1761068623453,3.383,4025.6,4024.9,2.22314467]
[1761068623671,5.86711281,4025.6,4024.8,0.6797]
[1761068623879,2.48420516,4025.5,4024.8,0.6797]
[1761068624079,2.48416345,4025.5,4024.8,0.2229]
[1761068624584,5.86712364,4025.6,4024.9,2.48452112]
[1761068624953,0.1726,4027.5,4026.1,2.48379324]
[1761068625303,0.1726,4027.5,4025.7,0.66794467]
[1761068625304,3.382,4027.1,4025.7,0.66794467]